Cogmind - Beta 13 @@@ ROGUE MODE // 2024.06.20 @ 23:34:01 Player: CONM Result: Destroyed by D-53 Grenadier with Mini Grenade Launcher Performance ------------- Evolutions (1) 500 Regions Visited (3) 600 Robots Destroyed (13) 65 Value Destroyed (306) 306 Prototype IDs (0) 0 Alien Tech Used (0) 0 Bonus (0) 0 TOTAL SCORE: 1471 Bonus ------- None Cogmind --------- Core Integrity 0/400 Matter 292/300 Energy 91/100 System Corruption 5% Temperature Cool (48) Movement Core (50) Location -9/Mines Parts ------- > --- POWER (1) -------- (None) > --- PROPULSION (3) --- (None) > --- UTILITY (3) ------ (None) > --- WEAPON (2) ------- (None) > --- INVENTORY (5) ---- Improved Terrain Scanner Tractor Beam Light Assault Rifle Peak State ------------ > --- POWER ------------ Light Ion Engine > --- PROPULSION ------- Light Treads Light Treads Light Treads > --- UTILITY ---------- Small Storage Unit Seismic Detector > --- WEAPON ----------- Light Assault Rifle Light Assault Rifle > --- INVENTORY -------- Light Treads Improved Terrain Scanner Propulsion Shielding Tractor Beam Light Cannon Light Cannon Light Cannon Light Cannon [Rating: 9] Favorites ----------- Power Ion Engine Engine Ion Engine Propulsion Light Treads Treads Light Treads Utility Small Storage Unit Device Seismic Detector Storage Small Storage Unit Protection Propulsion Shielding Weapon Light Assault Rifle Ballistic Gun Light Assault Rifle Ballistic Cannon Light Cannon Build | -11 -10 -9 -9 ------- Run | Yrd Mat Mat Min Slots Evolved 2 | . . 2 . Power . | . . . . Propulsion 1 | . . 1 . Utility 1 | . . 1 . Weapon . | . . . . Parts Attached 19 | 8 3 2 6 Power 3 | 2 1 . . Engine 3 | 2 1 . . Core . | . . . . Reactor . | . . . . Propulsion 6 | 2 2 1 1 Treads 6 | 2 2 1 1 Leg . | . . . . Wheel . | . . . . Hover . | . . . . Flight . | . . . . Utility 4 | 2 . . 2 Device 1 | 1 . . . Storage 2 | 1 . . 1 Processor . | . . . . Hackware . | . . . . Protection 1 | . . . 1 Artifact . | . . . . Weapon 6 | 2 . 1 3 Energy Gun . | . . . . Energy Cannon . | . . . . Ballistic Gun 2 | 2 . . . Ballistic Cannon 4 | . . 1 3 Launcher . | . . . . Special Weapon . | . . . . Impact Weapon . | . . . . Slashing Weapon . | . . . . Piercing Weapon . | . . . . Special Melee Weapon . | . . . . Unidentified Prototypes . | . . . . Parts Lost 13 | . 1 1 11 Power 2 | . 1 1 . Propulsion 4 | . . . 4 Utility 2 | . . . 2 Weapon 5 | . . . 5 Highest Loss Streak 7 | . 1 1 7 To Critical Strikes . | . . . . Average Slot Usage (%) 86 | . 99 80 54 Engine 10 | . 13 11 . Treads 23 | . 28 25 11 Device 10 | . 14 11 2 Storage 14 | . 14 11 17 Protection 1 | . . . 8 Ballistic Gun 20 | . 28 21 1 Ballistic Cannon 3 | . . 1 15 Naked Turns 2 | . . . 2 Heaviest Build 13 | 13 13 13 13 Greatest Support 60 | 40 40 60 60 Greatest Overweight (x) 3 | . . . 3 Average Overweight (x) . | . . . . Largest Inventory Capacity 8 | 8 8 8 8 Average Capacity 7 | 7 8 8 7 Most Carried 8 | 3 8 8 8 Average Carried 5 | 1 7 8 4 Final Capacity 8 | 8 8 8 5 Final Carried 8 | 3 8 8 3 Class Distribution -------------------- 100% | Mutant Dominant Class ---------------- Mutant | -10/Materials Mutant | -9/Materials Mutant | -9/Mines Resources | -11 -10 -9 -9 ----------- Run | Yrd Mat Mat Min Matter Collected 449 | 305 64 24 56 Remotely . | . . . . Salvage Created 428 | 68 165 132 63 Parts 25 | 9 10 6 . Haulers Intercepted . | . . . . Recyclers Shooed . | . . . . Parts Field Recycled . | . . . . Retrieved Matter . | . . . . Parts Self-Destructed . | . . . . Prevented . | . . . . Kills | -11 -10 -9 -9 ------- Run | Yrd Mat Mat Min Combat Hostiles Destroyed 21 | . 5 5 11 Guns 8 | . 5 3 . Cannons 11 | . . . 11 AOE 2 | . . 2 . Classes Destroyed 5 | 1 2 1 1 Tunneler 3 | 3 . . . Swarmer 5 | . 2 3 . Grunt 3 | . 3 . . Sentry 2 | . . 2 . Assembled 11 | . . . 11 Best Kill Streak 10 | 1 3 5 10 Combat Bots Only 10 | . 3 5 10 Max Kills in Single Turn 2 | 1 1 1 2 Gunslinging . | . . . . Exploded 1 | . . 1 . Melee . | . . . . Uniques/NPCs Destroyed . | . . . . Combat | -11 -10 -9 -9 -------- Run | Yrd Mat Mat Min Hostile Shots Fired 164 | . 38 39 87 Missed 50 | . 11 12 27 Damage Taken 1933 | . 295 305 1333 Core 429 | . 23 21 385 Absorbed by Shields . | . . . . Redirected to Shielding 46 | . . . 46 Core Remaining (%) 95 | 100 90 . . Volleys Fired 66 | 16 16 8 26 Largest 2 | 2 2 2 2 Hottest 70 | 40 40 55 70 Shots Fired 127 | 32 32 16 47 Gun 81 | 32 32 15 2 Cannon 46 | . . 1 45 Launcher . | . . . . Special . | . . . . Kinetic 127 | 32 32 16 47 Thermal . | . . . . Explosive . | . . . . Electromagnetic . | . . . . Robot Hit Streak 8 | 3 8 5 4 Robot Miss Streak 4 | 4 3 2 4 Penetration Max . | . . . . Secondary Targets . | . . . . Shots Hit Robots 68 | 17 20 8 23 Core Hits 40 | 7 11 6 16 Critical Kills . | . . . . Critical Parts Destroyed 1 | 1 . . . Critical Strikes 2 | 1 . . 1 Destroy 1 | 1 . . . Blast 1 | . . . 1 Melee Attacks . | . . . . Impact . | . . . . Slashing . | . . . . Piercing . | . . . . Sneak Attacks . | . . . . Combat Hostiles . | . . . . Follow-up Attacks . | . . . . Damage Inflicted 926 | 154 167 188 417 Guns 416 | 154 167 86 9 Cannons 408 | . . . 408 Explosions 102 | . . 102 . Melee . | . . . . Ramming . | . . . . Kinetic 824 | 154 167 86 417 Thermal . | . . . . Explosive 102 | . . 102 . Electromagnetic . | . . . . Impact . | . . . . Slashing . | . . . . Piercing . | . . . . Highest Corruption 5 | . . . 5 Average Corruption 5 | . . . 5 Corruption Purged . | . . . . Corruption Blocked . | . . . . Effects 3 | . . . 3 Matter Fused 1 | . . . 1 Heat Flow Errors 1 | . . . 1 Weapon Failures 1 | . . . 1 Overload Shots . | . . . . Overflow Damage 24 | . . . 24 Projectiles 24 | . . . 24 Explosions . | . . . . Melee . | . . . . Knockbacks 8 | . . . 8 Impact . | . . . . Kinetic 4 | . . . 4 Secondary 4 | . . . 4 Self-Inflicted Damage 82 | . . 82 . Shots 2 | . . 2 . Rammed . | . . . . Targets Rammed . | . . . . Kicked . | . . . . Crushed . | . . . . Highest Temperature 232 | . 24 8 232 Average Temperature 44 | . 10 6 68 Received Heat Transfer 376 | . 129 15 232 Siege Activations . | . . . . Robots Corrupted . | . . . . Combat Hostiles . | . . . . Parts Fried . | . . . . Impact Corruptions 1 | . . . 1 Robots Melted . | . . . . Combat Hostiles . | . . . . Parts Melted . | . . . . Heat Transferred . | . . . . Parts Sabotaged . | . . . . Parts Stolen . | . . . . Parts Stripped . | . . . . Power Chain Reactions . | . . . . Alert | -11 -10 -9 -9 ------- Run | Yrd Mat Mat Min Peak Influence 330 | 15 149 330 128 Initial 128 | . 9 62 128 Average 62 | 6 65 179 65 Maximum Alert Level 1 | . . 1 . Low Security (%) 93 | 100 100 55 100 Level 1 6 | . . 44 . Level 2 . | . . . . Level 3 . | . . . . Level 4 . | . . . . Level 5 . | . . . . High Security . | . . . . Max Security . | . . . . Squads Dispatched 2 | . 2 . . Investigation . | . . . . Extermination . | . . . . Reinforcement 2 | . 2 . . Assault . | . . . . Garrison . | . . . . Intercept . | . . . . Searches Triggered . | . . . . Construction Impeded . | . . . . Haulers Reinforced . | . . . . Active Scanning Responses . | . . . . Cargo Convoy Interrupts . | . . . . Stealth | -11 -10 -9 -9 --------- Run | Yrd Mat Mat Min Distress Signals 1 | . 1 . . Communications Jammed . | . . . . Distress Signals . | . . . . Times Spotted 54 | . 14 17 23 Peak Tracking Total 17 | . 7 10 17 Tactical Retreats 7 | . 2 3 2 Traps | -11 -10 -9 -9 ------- Run | Yrd Mat Mat Min Traps Triggered . | . . . . Indirectly . | . . . . Trap Hack Attempts . | . . . . Triggered . | . . . . Disarmed . | . . . . Reprogrammed . | . . . . Reused . | . . . . Traps Extracted . | . . . . Installed . | . . . . Triggered . | . . . . Machines | -11 -10 -9 -9 ---------- Run | Yrd Mat Mat Min Machines Disabled 3 | . . 3 . Max in Single Turn 2 | . . 2 . Machines Repaired . | . . . . Machines Dismantled . | . . . . Machines Sabotaged . | . . . . Overloaded Fab Kills . | . . . . Hacking | -11 -10 -9 -9 --------- Run | Yrd Mat Mat Min Machines Accessed 3 | . 2 1 . Terminals 3 | . 2 1 . Fabricators . | . . . . Repair Stations . | . . . . Recycling Units . | . . . . Scanalyzers . | . . . . Garrison Access . | . . . . Total Hacks 4 | . 2 2 . Successful . | . . . . Failed 4 | . 2 2 . Catastrophic 1 | . 1 . . Database Lockouts . | . . . . Manual 2 | . 2 . . Terminals 4 | . 2 2 . Fabricators . | . . . . Repair Stations . | . . . . Recycling Units . | . . . . Scanalyzers . | . . . . Garrison Access . | . . . . Terminal Hacks . | . . . . Fabricator Hacks . | . . . . Repair Station Hacks . | . . . . Recycling Unit Hacks . | . . . . Scanalyzer . | . . . . Garrison Access Hacks . | . . . . Unauthorized Hacks . | . . . . Terminals . | . . . . Fabricators . | . . . . Repair Stations . | . . . . Recycling Units . | . . . . Scanalyzers . | . . . . Garrison Access . | . . . . Data Cores Recovered . | . . . . Used . | . . . . Hacking Detections 3 | . 2 1 . Full Trace Events . | . . . . Feedback Events . | . . . . Feedback Blocked . | . . . . Robot Schematics Acquired . | . . . . Robots Built . | . . . . Authchips . | . . . . Time . | . . . . Total Robot Build Rating . | . . . . Part Schematics Acquired . | . . . . Parts Built . | . . . . Authchips . | . . . . Time . | . . . . Total Part Build Rating . | . . . . Parts Repaired . | . . . . Time . | . . . . Parts Recycled . | . . . . Recycled Matter . | . . . . Retrieved Matter . | . . . . Retrieved Components . | . . . . Parts Scanalyzed . | . . . . Part Schematics Acquired . | . . . . Parts Damaged . | . . . . Bothacking | -11 -10 -9 -9 ------------ Run | Yrd Mat Mat Min Used RIF Installer . | . . . . Robots Hacked . | . . . . Non-combat . | . . . . Combat . | . . . . Robot Hacks Applied . | . . . . Relay Couplers Released . | . . . . Fabnet Peak Effective % . | . . . . Robots Rewired . | . . . . Allies Hacked . | . . . . Hacks Repelled . | . . . . Allies | -11 -10 -9 -9 -------- Run | Yrd Mat Mat Min Total Allies . | . . . . Largest Group . | . . . . Highest-Rated Group . | . . . . Highest-Rated Ally . | . . . . Total Orders . | . . . . Ally Attacks . | . . . . Total Damage . | . . . . Kills . | . . . . Allies Corrupted . | . . . . Allies Melted . | . . . . Intel | -11 -10 -9 -9 ------- Run | Yrd Mat Mat Min Robot Analysis Total . | . . . . Derelict Logs Recovered . | . . . . Drone Launches . | . . . . Drone Recoveries . | . . . . Exploration | -11 -10 -9 -9 ------------- Run | Yrd Mat Mat Min Turns Passed 783 | 256 304 115 108 Spaces Moved 358 | 129 154 54 21 Core 14 | 4 . . 10 Treads 344 | 125 154 54 11 Legs . | . . . . Wheels . | . . . . Hover . | . . . . Flight . | . . . . Fastest Speed 50 | 50 160 160 50 Average Speed 156 | 156 160 160 126 Slowest Speed 200 | 160 160 160 200 Overloaded Moves . | . . . . Propulsion Burnouts . | . . . . Robots Hopped . | . . . . Cave-ins Triggered . | . . . . Exploration Rate (%) 16 | 7 33 11 16 Regions Visited 3 Branch Regions 1 Pre-discovered Areas . | . . . . Known Exits Taken . | . . . . Unknown Exits Taken 3 | 1 1 1 . Scrap Searched . | . . . . Spaces Dug . | . . . . Terrain Destroyed 57 | . . 57 . Melee . | . . . . Projectile . | . . . . AOE 57 | . . 57 . Terrain Rammed . | . . . . Walls Destroyed . | . . . . Machines Disabled . | . . . . Actions | -11 -10 -9 -9 --------- Run | Yrd Mat Mat Min Total 466 | 154 188 69 55 Wait 12 | . 6 6 . Move 355 | 128 153 53 21 Hop . | . . . . Pick Up 9 | 2 7 . . Fast Attach 9 | 7 . 1 1 Attach 6 | . 1 . 5 Detach . | . . . . Swap 4 | 1 2 1 . Drop 5 | . 3 . 2 Fire 66 | 16 16 8 26 Melee . | . . . . Ram . | . . . . Kick . | . . . . Crush . | . . . . Escape Stasis . | . . . . Rewire . | . . . . Trap . | . . . . Miscellaneous . | . . . . Route ------- -11/Scrapyard -10/Materials -9/Materials -9/Mines History --------- Turn | Location | Event 37 | -11/Scrapyard | Discovered new exit (range 15) 257 | -11/Scrapyard | Entered Materials 315 | -10/Materials | Build established: Mutant 545 | -10/Materials | Discovered new exit (range 10) 561 | -10/Materials | Entered another Materials area 561 | -9/Materials | Evolved 2 slots: Propulsion x1, Utility x1 569 | -9/Materials | Discovered new exit (range 13) 676 | -9/Materials | Entered Mines 677 | -9/Mines | Assembled infested the area 723 | -9/Mines | Lost 7 parts (1p3n1u2w) 767 | -9/Mines | Core integrity fell below 50% 783 | -9/Mines | Core integrity fell below 20% 784 | -9/Mines | Destroyed by D-53 Grenadier with Mini Grenade Launcher Last Messages --------------- 00769_ K-01 Serf collects debris. 00771_ as-78391 destroyed. 00772_ K-01 Serf collects debris. 00772_ C-30 ARC bursts open, deploying its payload. 00772_ D-53 Grenadier unfolds itself. 00774_ as-73617 destroyed. 00775_ Lgt. Cannon destroyed. 00775_ as-10845 destroyed. 00775_ as-16226 destroyed. 00775_ Seismic Survey Station disabled. 00776_ System corrupted: Heat flow error (+260). 00776_ Lgt. Cannon destroyed. 00776_ as-35945 destroyed. 00776_ K-01 Serf collects debris. 00778_ as-96747 destroyed. 00780_ K-01 Serf destroyed. 00780_ as-07097 destroyed. 00781_ Dropped Propulsion Shielding. 00782_ Dropped Sml. Storage Unit. Map ----- +----------------------------------------------------+ | | | | | | | | | | | | | | | | | | | | | | | | | | | | | | | | | | | | | ?????????????????????????????????????????????????? | | ????????????#######??????????????????????????????? | | ?????????? #?####????????????????????????? | | ??????????"" """ ### ####?????????????????????? | | ???????? """ """ ##????????????????????? | | ??????"" """ """ ####?????????????????? | | ???????? ##????????????????? | | ???????? """ """ ! @ #????????????????? | | ???????? """ " b #????????????????? | | ???? """ """ ## ##????????????????? | | ?? d #???#?????????????????? | | ?????######## d # ?????????????????????? | | ????????????# g ## #??????????????????????? | | ????????????# % #### #??????????????????????? | | ?????????#### #??#u#??????????????????????? | | ?????????# ##??# #??????????????????????? | | ?????????# # ##???? #??????????????????????? | | ?????????#?# !! ##??? #??????????????????????? | | ????# # !! ##?? ??????????????????????? | | ?????# !!!! #??##??????????????????????? | | ?????# !!!! #??????????????????????????? | | ?????## # ##??????????????????????????? | | ??????################???????????????????????????? | | ?????????????????????????????????????????????????? | | ?????????????????????????????????????????????????? | | ?????????????????????????????????????????????????? | | ?????????????????????????????????????????????????? | | ?????????????????????????????????????????????????? | | ?????????????????????????????????????????????????? | | ?????????????????????????????????????????????????? | | ?????????????????????????????????????????????????? | | ?????????????????????????????????????????????????? | +----------------------------------------------------+ Best States ------------- Heat Dissipation 28 Energy Generation 10 Energy Capacity 250 Matter Stores 486 Matter Capacity 500 Sight Range 16 Terrain Scan Density 10 Propulsion Shielding 33 Evasion (%) 40 Recoil Reduction 3 Item Schematics ----------------- None Robot Schematics ------------------ None Fabricated ------------ Nothing Alien Tech Used ----------------- None Achievements -------------- None Challenges ------------ None Game ------ Seed TripodLightpackClaw Manual? 0 Play Time 00:16:11 Cumulative 34.9 hours Start 2024.06.19 @ 20:11:47 End 2024.06.20 @ 23:34:01 Sessions 1 Manual Loads 0 Difficulty Rogue Special Mode None Game No. 58 Rogue 58 Adventurer 0 Explorer 0 Win Type - Total 0 Types 0/0/0/0/0/0/0/0/0 Lore% 23 Gallery% 25 Achievement% 27 Wizard Run 0 Options --------- Layout 1 ASCII 0 Keyboard 0 Movement Arrows Keybinds 0 Fullscreen 1 Font 24/Crisp Map View 50x40 Zoom Use 0% Tactical HUD 1 Map Filters NONE Filters NONE Steam 1 RUN: f1d6ca07-1f28-4168-83c1-1b36ff5f6a32